Cogmind - Beta 15 @@@ ROGUE MODE // 2025.10.16 @ 18:46:22 Player: Malady Result: Destroyed by C-40 Crusher with Compactor Performance ------------- Evolutions (3) 1500 Regions Visited (7) 1400 Robots Destroyed (72) 360 Value Destroyed (2154) 2154 Prototype IDs (2) 40 Alien Tech Used (0) 0 Bonus (502) 502 TOTAL SCORE: 5956 Bonus ------- High Alert Combat Kills 235 Follower Combat Kills 267 Cogmind --------- Core Integrity 0/700 Matter 282/300 Energy 100/100 System Corruption 29% Temperature Cool (0) Movement Core (50) Location -7/Waste Parts ------- > --- POWER (1) -------- (None) > --- PROPULSION (4) --- (None) > --- UTILITY (6) ------ Hacking Suite > --- WEAPON (2) ------- (None) > --- INVENTORY (5) ---- Improved Deuterium Engine Medium Storage Unit High-capacity Matter Pod (149) Improved EM Pulse Cannon Mini Grenade Launcher Peak State ------------ > --- POWER ------------ Light Nuclear Core > --- PROPULSION ------- Aluminum Leg Aluminum Leg Aluminum Leg Aluminum Leg > --- UTILITY ---------- Medium Storage Unit High-capacity Matter Pod Advanced Targeting Computer Weapon Cycler Medium Armor Plating Hacking Suite > --- WEAPON ----------- Rocket Launcher Mini Grenade Launcher > --- INVENTORY -------- Improved Ion Engine Heavy Ion Engine Light Nuclear Core Rocket Launcher Mini Grenade Launcher Mini Grenade Launcher Mini Grenade Launcher Mini Grenade Launcher Mini Grenade Launcher [Rating: 27] Favorites ----------- Power Ion Engine Engine Ion Engine Power Core Light Nuclear Core Propulsion Aluminum Leg Leg Aluminum Leg Utility ECM Suite Device ECM Suite Storage Small Storage Unit Processor Advanced Targeting Computer Hackware Hacking Suite Protection Propulsion Shielding Weapon EM Pulse Gun Energy Gun EM Pulse Gun Launcher Rocket Launcher Build | -11 -10 -10 -9 -9 -8 -7 -7 ------- Run | Yrd Mat Min Mat Sto Mat Fac Was Slots Evolved 6 | . . . 2 . 2 2 . Power . | . . . . . . . . Propulsion 2 | . . . . . 2 . . Utility 4 | . . . 2 . . 2 . Weapon . | . . . . . . . . Parts Attached 45 | 6 1 . 1 20 6 9 2 Power 8 | 1 . . . 2 1 3 1 Engine 6 | 1 . . . 2 . 2 1 Core 2 | . . . . . 1 1 . Reactor . | . . . . . . . . Propulsion 6 | 2 . . . 2 2 . . Treads . | . . . . . . . . Leg 6 | 2 . . . 2 2 . . Wheel . | . . . . . . . . Hover . | . . . . . . . . Flight . | . . . . . . . . Utility 19 | 1 1 . 1 11 2 2 1 Device 8 | . . . 1 6 . 1 . Storage 4 | 1 . . . 1 1 . 1 Processor 2 | . . . . 1 1 . . Hackware 1 | . . . . . . 1 . Protection 4 | . 1 . . 3 . . . Artifact . | . . . . . . . . Weapon 12 | 2 . . . 5 1 4 . Energy Gun 2 | 2 . . . . . . . Energy Cannon . | . . . . . . . . Ballistic Gun . | . . . . . . . . Ballistic Cannon . | . . . . . . . . Launcher 10 | . . . . 5 1 4 . Special Weapon . | . . . . . . . . Impact Weapon . | . . . . . . . . Slashing Weapon . | . . . . . . . . Piercing Weapon . | . . . . . . . . Special Melee Weapon . | . . . . . . . . Unidentified Prototypes 2 | . . . . . . 1 1 Corrupted Parts 2 | . . . . . . . 2 System Corruption 11 | . . . . . . . 11 Parts Lost 23 | . . . . 9 . 12 2 Power 3 | . . . . 1 . 2 . Propulsion 6 | . . . . 2 . 4 . Utility 5 | . . . . 2 . 2 1 Weapon 9 | . . . . 4 . 4 1 Highest Loss Streak 12 | . . . . 6 . 12 1 To Critical Strikes . | . . . . . . . . Average Backups 6 | 1 1 4 3 7 9 7 4 Power 1 | . 1 1 1 1 2 2 1 Propulsion . | . . . . . . . . Utility 1 | . . 3 2 2 . . 1 Weapon 3 | . . . . 3 6 5 2 Tool/Special . | . . . . . . . . Unused Backups 8 | 1 . . . 7 . . . Power 1 | . . . . 1 . . . Propulsion 1 | . . . . 1 . . . Utility 5 | . . . . 5 . . . Weapon 1 | 1 . . . . . . . Tool/Special . | . . . . . . . . Average Slot Usage (%) 83 | . 89 100 88 88 88 80 29 Engine 7 | . 14 14 11 10 5 . . Core 1 | . . . . . 3 6 . Leg 21 | . 28 28 22 21 29 22 . Device 9 | . . . 11 17 1 1 . Storage 12 | . 14 14 11 11 16 15 7 Processor 4 | . . . . 2 9 7 7 Hackware 1 | . . . . . . 7 7 Protection 8 | . 4 14 11 9 9 4 . Energy Gun 7 | . 28 28 22 8 . . . Launcher 7 | . . . . 6 14 13 5 Peak Build Rating 27 | 6 7 7 8 16 20 27 20 Average Rating 13 | 4 6 7 8 11 16 21 13 On Entrance 9 | . 6 7 7 8 13 20 16 Naked Turns . | . . . . . . . . Heaviest Build 33 | 14 15 15 17 30 33 32 5 Greatest Support 40 | 20 20 20 20 20 40 40 3 Greatest Overweight (x) 6 | . . . . 4 1 6 1 Average Overweight (x) . | . . . . . . . . Largest Inventory Capacity 10 | 8 8 8 8 10 10 10 10 Average Capacity 8 | 7 8 8 8 8 10 10 5 Most Carried 10 | 5 4 4 3 10 10 10 7 Average Carried 7 | 1 1 4 3 7 9 7 4 Final Capacity 10 | 8 8 8 8 10 10 10 5 Final Carried 10 | 1 4 4 3 10 10 4 5 Class Distribution -------------------- 60% | Mutant 34% | Scavenger-Mutant 5% | Commander-Mutant Dominant Class ---------------- Mutant | -10/Materials Mutant | -10/Mines Mutant | -9/Materials Mutant | -9/Storage Scavenger-Mutant | -8/Materials Scavenger-Mutant | -7/Factory Mutant | -7/Waste Resources | -11 -10 -10 -9 -9 -8 -7 -7 ----------- Run | Yrd Mat Min Mat Sto Mat Fac Was Matter Collected 1422 | 204 10 . . 478 278 274 178 Remotely . | . . . . . . . . Salvage Created 1948 | . . 110 . 845 347 386 260 Parts 107 | . . 2 . 61 18 26 . Haulers Intercepted 5 | . . . . 4 . 1 . Recyclers Shooed 7 | . . . . 6 . 1 . Parts Field Recycled . | . . . . . . . . Retrieved Matter . | . . . . . . . . Parts Self-Destructed . | . . . . . . . . Prevented . | . . . . . . . . Kills | -11 -10 -10 -9 -9 -8 -7 -7 ------- Run | Yrd Mat Min Mat Sto Mat Fac Was Combat Hostiles Destroyed 44 | . . 2 . 25 6 10 1 Melee 1 | . . . . 1 . . . Guns 5 | . . 2 . 3 . . . AOE 37 | . . . . 20 6 10 1 Classes Destroyed 11 | . . 1 . 7 1 1 1 Worker 6 | . . . . 2 . 4 . Builder 9 | . . . . 4 1 4 . Hauler 5 | . . . . 4 . 1 . Recycler 2 | . . . . . 1 1 . Mechanic 3 | . . . . 1 1 1 . Watcher 3 | . . . . 1 1 1 . Swarmer 7 | . . . . 7 . . . Grunt 25 | . . 2 . 11 6 6 . Sentry 9 | . . . . 7 . 2 . Hunter 2 | . . . . . . 2 . Compactor 1 | . . . . . . . 1 Best Kill Streak 14 | . . 2 . 12 6 14 1 Combat Bots Only 6 | . . 2 . 6 3 6 1 Max Kills in Single Turn 7 | . . 1 . 4 6 7 1 Gunslinging . | . . . . . . . . Exploded 4 | . . . . 4 3 4 1 Melee 1 | . . . . 1 . . . Uniques/NPCs Destroyed . | . . . . . . . . Combat | -11 -10 -10 -9 -9 -8 -7 -7 -------- Run | Yrd Mat Min Mat Sto Mat Fac Was Hostile Shots Fired 303 | . . 15 . 107 6 173 2 Missed 94 | . . 4 . 24 . 66 . Hits 209 | . . 11 . 83 6 107 2 Melee 2 | . . . . . . . 2 Projectile 207 | . . 11 . 83 6 107 . Critical Strikes 6 | . . . . 3 1 1 1 Actively Blocked 1 | . . . . 1 . . . Damage Taken 3056 | . . 143 . 1231 108 1441 133 Core 1096 | . . 14 . 347 20 611 104 Absorbed by Shields . | . . . . . . . . Redirected to Shielding 50 | . . 19 . 31 . . . Core Remaining (%) 75 | 100 . 94 . 13 96 . . Volleys Fired 87 | . . 12 . 43 6 17 9 Largest 2 | . . 2 . 2 2 2 1 Hottest 80 | . . 80 . 80 63 63 30 Shots Fired 126 | . . 24 . 62 7 23 10 Gun 59 | . . 24 . 35 . . . Cannon . | . . . . . . . . Launcher 67 | . . . . 27 7 23 10 Special . | . . . . . . . . Kinetic . | . . . . . . . . Thermal . | . . . . . . . . Explosive 67 | . . . . 27 7 23 10 Electromagnetic 59 | . . 24 . 35 . . . Robot Hit Streak 12 | . . 5 . 12 10 8 12 Robot Miss Streak 4 | . . 2 . 4 2 1 2 Penetration Max . | . . . . . . . . Secondary Targets . | . . . . . . . . Shots Hit Robots 76 | . . 15 . 41 3 13 4 Core Hits 138 | 3 . 5 . 71 18 38 3 Critical Kills . | . . . . . . . . Critical Parts Destroyed . | . . . . . . . . Critical Strikes . | . . . . . . . . Melee Attacks . | . . . . . . . . Impact . | . . . . . . . . Slashing . | . . . . . . . . Piercing . | . . . . . . . . Sneak Attacks . | . . . . . . . . Combat Hostiles . | . . . . . . . . Follow-up Attacks . | . . . . . . . . Damage Inflicted 7105 | 49 . 212 . 2476 663 2875 830 Guns 510 | . . 199 . 311 . . . Cannons . | . . . . . . . . Explosions 6399 | . . . . 2070 663 2836 830 Melee . | . . . . . . . . Ramming 196 | 49 . 13 . 95 . 39 . Kinetic . | . . . . . . . . Thermal 1301 | . . . . . . 1301 . Explosive 5098 | . . . . 2070 663 1535 830 Electromagnetic 510 | . . 199 . 311 . . . Impact . | . . . . . . . . Slashing . | . . . . . . . . Piercing . | . . . . . . . . Highest Corruption 29 | . . . . . . 2 29 Average Corruption 15 | . . . . . . 1 16 Corruption Purged . | . . . . . . . . Corruption Blocked . | . . . . . . . . Effects 9 | . . . . . . . 9 Message Errors 1 | . . . . . . . 1 Matter Fused 2 | . . . . . . . 2 Heat Flow Errors 2 | . . . . . . . 2 Data Loss (minor) 2 | . . . . . . . 2 Misfires 1 | . . . . . . . 1 Misdirections 1 | . . . . . . . 1 Overload Shots . | . . . . . . . . Overflow Damage 482 | . . . . 23 . 459 . Projectiles . | . . . . . . . . Explosions 482 | . . . . 23 . 459 . Melee . | . . . . . . . . Knockbacks . | . . . . . . . . Impact . | . . . . . . . . Kinetic . | . . . . . . . . Secondary . | . . . . . . . . Self-Inflicted Damage 511 | . . . . 123 . 317 71 Shots 19 | . . . . 5 . 11 3 Rammed . | . . . . . . . . Targets Rammed 71 | 23 . 3 . 40 . 5 . Kicked 71 | 23 . 3 . 40 . 5 . Crushed . | . . . . . . . . Highest Temperature 300 | . . 300 . 135 12 24 215 Average Temperature 88 | . . 161 . 50 6 9 96 Received Heat Transfer 852 | . . 84 . 429 81 258 . Siege Activations . | . . . . . . . . Martial Activations . | . . . . . . . . Shielding Activations . | . . . . . . . . Robots Disrupted . | . . . . . . . . Combat Hostiles . | . . . . . . . . Robots Corrupted 1 | . . . . 1 . . . Combat Hostiles 1 | . . . . 1 . . . Parts Fried 6 | . . 1 . 5 . . . Impact Corruptions . | . . . . . . . . Robots Melted . | . . . . . . . . Combat Hostiles . | . . . . . . . . Parts Melted . | . . . . . . . . Heat Transferred 700 | . . . . . . 700 . Parts Sabotaged . | . . . . . . . . Parts Stolen . | . . . . . . . . Parts Stripped . | . . . . . . . . Power Chain Reactions . | . . . . . . . . Alert | -11 -10 -10 -9 -9 -8 -7 -7 ------- Run | Yrd Mat Min Mat Sto Mat Fac Was Maximum Alert Level 3 | . . . . 3 2 2 1 Low Security (%) 53 | 100 100 100 100 57 . 21 76 Level 1 10 | . . . . 3 28 29 23 Level 2 18 | . . . . 7 71 49 . Level 3 16 | . . . . 31 . . . Level 4 . | . . . . . . . . Level 5 . | . . . . . . . . High Security . | . . . . . . . . Max Security . | . . . . . . . . Peak Influence 776 | . . 40 7 776 573 648 213 Initial 306 | . . . 7 . 306 242 213 Average 274 | . . 10 4 298 454 394 178 Influence Increases 2361 | . . 50 . 1253 327 706 25 Destroy 0b10 Robot/C 1040 | . . 40 . 640 160 200 . Destroy 0b10 Robot/NC 145 | . . . . 65 20 60 . Destroy Leader 288 | . . 10 . 182 32 64 . Allied During Kill 141 | . . . . 104 31 6 . Successful Hack 2 | . . . . 2 . . . Disable Machine 270 | . . . . 105 30 135 . Anti-Garrison Action 150 | . . . . . . 150 . Destroy Structure 325 | . . . . 155 54 91 25 Influence Decreases 2223 | . . 30 20 526 521 629 497 Entered New Map 1122 | . . . 13 . 421 291 397 Time Decay 721 | . . 30 7 306 100 198 80 Lost Part 220 | . . . . 80 . 120 20 Lost Ally 160 | . . . . 140 . 20 . Squads Dispatched 14 | . 1 . . 7 1 5 . Investigation 3 | . 1 . . 1 1 . . Extermination 1 | . . . . . . 1 . Reinforcement 5 | . . . . 3 . 2 . Assault 4 | . . . . 2 . 2 . Garrison 1 | . . . . 1 . . . Intercept . | . . . . . . . . Searches Triggered . | . . . . . . . . Construction Impeded 2 | . . . . 1 . 1 . Haulers Reinforced 1 | . . . . . . 1 . Active Scanning Responses . | . . . . . . . . Cargo Convoy Interrupts . | . . . . . . . . Stealth | -11 -10 -10 -9 -9 -8 -7 -7 --------- Run | Yrd Mat Min Mat Sto Mat Fac Was Distress Signals 6 | . 1 . . 3 1 1 . Communications Jammed . | . . . . . . . . Distress Signals . | . . . . . . . . Times Spotted 77 | . . 2 . 45 9 16 5 Peak Tracking Total 7 | . 1 2 . 6 3 7 4 Tactical Retreats 5 | . . . . 5 . . . Traps | -11 -10 -10 -9 -9 -8 -7 -7 ------- Run | Yrd Mat Min Mat Sto Mat Fac Was Traps Triggered 3 | . 1 . . 1 . 1 . Indirectly . | . . . . . . . . Trap Hack Attempts . | . . . . . . . . Triggered . | . . . . . . . . Disarmed . | . . . . . . . . Reprogrammed . | . . . . . . . . Reused . | . . . . . . . . Traps Extracted . | . . . . . . . . Installed . | . . . . . . . . Triggered . | . . . . . . . . Machines | -11 -10 -10 -9 -9 -8 -7 -7 ---------- Run | Yrd Mat Min Mat Sto Mat Fac Was Machines Disabled 19 | . . . . 7 2 10 . Max in Single Turn 5 | . . . . 2 1 5 . Garrison Access 1 | . . . . . . 1 . Machines Repaired . | . . . . . . . . Machines Dismantled . | . . . . . . . . Machines Sabotaged . | . . . . . . . . Overloaded Fab Kills . | . . . . . . . . Hacking | -11 -10 -10 -9 -9 -8 -7 -7 --------- Run | Yrd Mat Min Mat Sto Mat Fac Was Machines Accessed 3 | . . . . 2 . 1 . Terminals 2 | . . . . 1 . 1 . Fabricators . | . . . . . . . . Repair Stations . | . . . . . . . . Recycling Units 1 | . . . . 1 . . . Scanalyzers . | . . . . . . . . Garrison Access . | . . . . . . . . Total Hacks 10 | . . . . 9 . 1 . Successful 5 | . . . . 5 . . . Failed 5 | . . . . 4 . 1 . Catastrophic . | . . . . . . . . Database Lockouts . | . . . . . . . . Manual . | . . . . . . . . Terminals 4 | . . . . 3 . 1 . Fabricators . | . . . . . . . . Repair Stations . | . . . . . . . . Recycling Units 6 | . . . . 6 . . . Scanalyzers . | . . . . . . . . Garrison Access . | . . . . . . . . Terminal Hacks 1 | . . . . 1 . . . Open Door 1 | . . . . 1 . . . Fabricator Hacks . | . . . . . . . . Repair Station Hacks . | . . . . . . . . Recycling Unit Hacks 4 | . . . . 4 . . . Recycle Component 1 | . . . . 1 . . . Process 2 | . . . . 2 . . . Retrieve Matter 1 | . . . . 1 . . . Scanalyzer . | . . . . . . . . Garrison Access Hacks . | . . . . . . . . Unauthorized Hacks . | . . . . . . . . Terminals . | . . . . . . . . Fabricators . | . . . . . . . . Repair Stations . | . . . . . . . . Recycling Units . | . . . . . . . . Scanalyzers . | . . . . . . . . Garrison Access . | . . . . . . . . Data Cores Recovered . | . . . . . . . . Used . | . . . . . . . . Hacking Detections 3 | . . . . 2 . 1 . Full Trace Events . | . . . . . . . . Feedback Events . | . . . . . . . . Feedback Blocked . | . . . . . . . . Robot Schematics Acquired . | . . . . . . . . Robots Built . | . . . . . . . . Authchips . | . . . . . . . . Time . | . . . . . . . . Total Robot Build Rating . | . . . . . . . . Part Schematics Acquired . | . . . . . . . . Parts Built . | . . . . . . . . Authchips . | . . . . . . . . Time . | . . . . . . . . Total Part Build Rating . | . . . . . . . . Parts Repaired . | . . . . . . . . Time . | . . . . . . . . Parts Recycled 1 | . . . . 1 . . . Recycled Matter 22 | . . . . 22 . . . Retrieved Matter 22 | . . . . 22 . . . Retrieved Components . | . . . . . . . . Parts Scanalyzed . | . . . . . . . . Part Schematics Acquired . | . . . . . . . . Parts Damaged . | . . . . . . . . Bothacking | -11 -10 -10 -9 -9 -8 -7 -7 ------------ Run | Yrd Mat Min Mat Sto Mat Fac Was Used RIF Installer . | . . . . . . . . Robots Hacked . | . . . . . . . . Non-combat . | . . . . . . . . Combat . | . . . . . . . . Robot Hacks Applied . | . . . . . . . . Relay Couplers Released 4 | . . . . . . 4 . Machine Destruction 4 | . . . . . . 4 . Fabnet Peak Effective % . | . . . . . . . . Robots Rewired . | . . . . . . . . Allies Hacked . | . . . . . . . . Hacks Repelled . | . . . . . . . . Allies | -11 -10 -10 -9 -9 -8 -7 -7 -------- Run | Yrd Mat Min Mat Sto Mat Fac Was Total Allies 10 | . . . . 10 . . . Largest Group 10 | . . . . 10 3 1 . Highest-Rated Group 88 | . . . . 88 32 16 . Highest-Rated Ally 16 | . . . . 16 16 16 . Total Orders . | . . . . . . . . Ally Attacks 90 | . . . . 65 18 7 . Total Damage 852 | . . . . 572 191 89 . Kills 10 | . . . . 8 2 . . Allies Corrupted . | . . . . . . . . Allies Melted . | . . . . . . . . Intel | -11 -10 -10 -9 -9 -8 -7 -7 ------- Run | Yrd Mat Min Mat Sto Mat Fac Was Active Infowar (turns) 1267 | . . . 27 1221 19 . . ECM 1267 | . . . 27 1221 19 . . Robot Analysis Total . | . . . . . . . . Derelict Logs Recovered . | . . . . . . . . Drone Launches 4 | . . . . 4 . . . Drone Recoveries . | . . . . . . . . Exploration | -11 -10 -10 -9 -9 -8 -7 -7 ------------- Run | Yrd Mat Min Mat Sto Mat Fac Was Turns Passed 2361 | 112 88 131 27 1224 200 409 170 Spaces Moved 1260 | 72 69 66 22 545 113 235 138 Core 190 | 23 . . . 9 . 20 138 Treads . | . . . . . . . . Legs 1070 | 49 69 66 22 536 113 215 . Wheels . | . . . . . . . . Hover . | . . . . . . . . Flight . | . . . . . . . . Fastest Speed 50 | 50 120 120 120 120 120 120 50 Average Speed 138 | 97 120 120 120 155 154 141 93 Slowest Speed 350 | 120 120 120 120 250 190 350 100 Overloaded Moves . | . . . . . . . . Propulsion Burnouts . | . . . . . . . . Robots Hopped . | . . . . . . . . Potential Cave-ins 13 | . . . . 2 . . 11 Cave-ins Triggered . | . . . . . . . . Exploration Rate (%) 26 | 5 16 23 3 90 15 9 51 Regions Visited 7 Branch Regions 2 Pre-discovered Areas . | . . . . . . . . Known Exits Taken . | . . . . . . . . Unknown Exits Taken 6 | 1 1 1 1 1 1 . . Scrap Searched 1 | . . 1 . . . . . Spaces Dug 13 | . . . . . . . 13 Terrain Destroyed 390 | . . . . 162 55 103 70 Melee . | . . . . . . . . Projectile . | . . . . . . . . AOE 390 | . . . . 162 55 103 70 Terrain Rammed . | . . . . . . . . Walls Destroyed . | . . . . . . . . Machines Disabled . | . . . . . . . . Actions | -11 -10 -10 -9 -9 -8 -7 -7 --------- Run | Yrd Mat Min Mat Sto Mat Fac Was Total 1751 | 109 74 93 22 855 132 293 173 Wait 203 | . 1 13 . 157 . 24 8 Move 1254 | 71 68 65 21 544 112 235 138 Hop . | . . . . . . . . Pick Up 45 | 8 4 . . 26 4 2 1 Fast Attach 12 | . . . . 7 3 . 2 Attach 33 | 6 1 . 1 9 2 9 5 Detach 9 | . . . . 1 . 1 7 Swap 8 | . . . . 7 1 . . Drop 26 | 1 . . . 18 4 . 3 Fire 87 | . . 12 . 43 6 17 9 Melee . | . . . . . . . . Ram . | . . . . . . . . Kick 71 | 23 . 3 . 40 . 5 . Crush . | . . . . . . . . Escape Stasis . | . . . . . . . . Rewire 3 | . . . . 3 . . . Trap . | . . . . . . . . Miscellaneous . | . . . . . . . . Route ------- -11/Scrapyard -10/Materials -10/Mines -9/Materials -9/Storage -8/Materials -7/Factory -7/Waste History --------- Turn | Location | Event 25 | -11/Scrapyard | Discovered new exit (range 15) 113 | -11/Scrapyard | Entered Materials 114 | -10/Materials | Met a group of wandering Federalists 188 | -10/Materials | Discovered new exit (range 11) 201 | -10/Materials | Entered Mines 313 | -10/Mines | Build established: Mutant 322 | -10/Mines | Discovered new exit (range 8) 332 | -10/Mines | Entered Materials 332 | -9/Materials | Evolved 2 slots: Utility x2 341 | -9/Materials | Discovered new exit (range 15) 359 | -9/Materials | Entered Storage 880 | -9/Storage | Lost 3 parts (1u2w) 1068 | -9/Storage | Core integrity fell below 50% 1101 | -9/Storage | Core integrity fell below 20% 1125 | -9/Storage | Garrison activated, responded to threat 1128 | -9/Storage | Lost 6 parts (1p2n1u2w) 1155 | -9/Storage | Assisted by bots powering up and referring to "LRC-V3" 1218 | -9/Storage | Lost 3 allies 1533 | -9/Storage | Discovered new exit (range 16) 1559 | -9/Storage | First assault squad dispatched 1567 | -9/Storage | Build established: Scavenger-Mutant 1583 | -9/Storage | Entered Materials 1583 | -8/Materials | Accompanied by 3 allies 1583 | -8/Materials | Evolved 2 slots: Propulsion x2 1765 | -8/Materials | Discovered new exit (range 16) 1783 | -8/Materials | Entered Factory 1783 | -7/Factory | Accompanied by 1 ally 1783 | -7/Factory | Evolved 2 slots: Utility x2 1988 | -7/Factory | Garrison activated, responded to threat 2112 | -7/Factory | Core integrity fell below 50% 2145 | -7/Factory | Lost 12 parts (2p4n2u4w) 2187 | -7/Factory | Core integrity fell below 20% 2192 | -7/Factory | Sucked down chute 2192 | -7/Factory | Entered Waste 2207 | -7/Waste | EMP discharged 2207 | -7/Waste | System corruption reached 10% 2208 | -7/Waste | Spotted C-40 Crusher 2223 | -7/Waste | Spotted C-40 Crusher 2235 | -7/Waste | Crushed by Compactor (1 part destroyed, 1 dropped) 2255 | -7/Waste | Spotted C-40 Crusher 2282 | -7/Waste | Spotted C-40 Crusher 2298 | -7/Waste | Spotted C-40 Crusher 2303 | -7/Waste | Destroyed C-40 Crusher 2307 | -7/Waste | EMP discharged 2362 | -7/Waste | Crushed by Compactor (1 part destroyed, 2 dropped) 2362 | -7/Waste | Destroyed by C-40 Crusher with Compactor Last Messages --------------- System corrupted: FCS attempts to trigger Mni. Grenade Launcher. System corrupted: Mni. Grenade Launcher misfires. [Achievement: Maybe Next Time I'll Detach My Launcher] The unstable cave ceiling collapses. 129 Matter crushed. Extracted 10 matter. Acquired Hcp. Matter Pod. System corrupted: Matter fused (-6). System corrupted: Heat flow error (+249). Acquired 58 matter. Acquired Corrupted Imp. Deuterium Engine. Integrated Corrupted Imp. Deuterium Engine (+7). Dropped Lgt. Nuclear Core. System corrupted: Matter fused (-8). Imp. Energy Well crushed. Mni. Grenade Launcher crushed. Adv. Targeting Computer crushed. Map ----- +----------------------------------------------------+ | ?????????????????????????????????????????????????? | | ?????????????????????????????????????????????????? | | ?????????????????????????????????????????????????? | | ???????????????????????##########????????????????? | | ???????????????????????# #????????????????? | | ???????????????????????# #????????????????? | | ???????????????????????# #????????????????? | | ???????????????????????# #????????????????? | | ???????????????????????# #????????????????? | | ???????????????????????# #????????????????? | | ???????????????????????? #????????????????? | | ????????????????????????? #?????#####??????? | | ?????????????????????????# #??????? #??????? | | ?????????????????????????# #??????# #??????? | | ?????????????????????????# #??????# #??????? | | ?????????????????????????# #??????# !#??????? | | ???????????????????????### #####??# ######## | | ???????????????????????# #### | | ???????????????????????# ## # # | | ???????????????????????# # # | | ???????????????????????# | | ???????????????????????# # #?????? | | ???????????############## # ##?????? | | ???????????# ## #?????? | | ???????????# ## # # ##?????? | | ???????????# ## @ ######## #??????? | | ???????????# CC #??????? | | ???????????# ! CC #??????? | | ???????????# * #??????? | | ???????????# ! CC #??????? | | ???????????# #### CC######## #??????? | | ???????????# #??# #??????# #??????? | | ???????????# #??# CC #??????# #??????? | | ???????????############??# CC #??????# #??????? | | ???????????????????????### ######## #??????? | | ???????????????????????# CC #??????? | | ???????????????????????# CC #??????? | | ???????????????????????# #??????? | | ???????????????????????# #??????? | | ???????????????????????### ######## #??????? | | ?????????????????????????# #??????# #??????? | | ?????????????????????????# #??????# #??????? | | ?????????????????????????# #??????# #??????? | | ?????????????????????????# #??????# #??????? | | ????????????????????????? ?????######??????? | | ???????????????????????? #????????????????? | | ???????????????????????# #????????????????? | | ???????????????????????# #????????????????? | | ???????????????????????# #????????????????? | | ???????????????????????# #????????????????? | +----------------------------------------------------+ Best States ------------- Heat Dissipation 38 Energy Generation 16 Energy Capacity 690 Matter Stores 500 Matter Capacity 500 Sight Range 16 Terrain Scan Density 10 ECM Strength 1 Armor Coverage 225 Propulsion Shielding 33 Weapon Cycling 15 Evasion (%) 55 Targeting Accuracy 8 Offensive Hacking 10 Item Schematics ----------------- None Robot Schematics ------------------ None Fabricated ------------ Nothing Repaired ---------- Nothing Alien Tech Used ----------------- None Achievements -------------- Hey, That's Mine! Maybe Next Time I'll Detach My Launcher Power Corrupts Remodeling Significant Disruption The More The Merrier Troublemaker Challenges ------------ None Game ------ Seed GrenadeLightningScrap Manual? 0 Play Time 01:03:18 Cumulative 4.7 hours Start 2025.10.16 @ 05:11:09 End 2025.10.16 @ 18:46:22 Sessions 2 Manual Loads 0 Difficulty Rogue Special Mode None Game No. 9 Rogue 8 Adventurer 1 Explorer 0 Win Type - Total 0 Types 0/0/0/0/0/0/0/0/0/0 Lore% 2 Gallery% 7 Achievement% 12 Wizard Run 0 Options --------- Layout 1 ASCII 0 Keyboard 0 Movement Numpad Keybinds 0 Fullscreen 1 Font 24/Smallcaps Map View 50x35 Zoom Use 0% Tactical HUD 0 Map Filters NONE Filters NONE Steam 1 RUN: 8e5a9744-3cdf-4398-aacf-21ce9443b989